[Event "Live Chess"]
[Site "Chess.com"]
[Date "2024.06.02"]
[Round "-"]
[White "NomisY"]
[Black "ACM42"]
[Result "0-1"]
[WhiteElo "2266"]
[BlackElo "2164"]
[TimeControl "300"]
[EndTime "3:06:59 PDT"]
[Termination "ACM42 won on time"]

1. d4 {[%clk 0:04:50.9]} 1... Nf6 {[%clk 0:04:58.3]} 2. c4 {[%clk 0:04:49.4]}
2... g6 {[%clk 0:04:56.2]} 3. Nc3 {[%clk 0:04:47.7]} 3... Bg7 {[%clk 0:04:52.1]}
4. e4 {[%clk 0:04:45.8]} 4... O-O {[%clk 0:04:45.8]} 5. Be3 {[%clk 0:04:42.7]}
5... c6 {[%clk 0:04:42]} 6. e5 {[%clk 0:04:33]} 6... Ne8 {[%clk 0:04:38.9]} 7.
h4 {[%clk 0:04:31.3]} 7... d6 {[%clk 0:04:35.9]} 8. h5 {[%clk 0:04:26.3]} 8...
dxe5 {[%clk 0:04:31.4]} 9. dxe5 {[%clk 0:04:23.7]} 9... Qxd1+ {[%clk 0:04:29.1]}
10. Rxd1 {[%clk 0:04:23.1]} 10... Bxe5 {[%clk 0:04:26.4]} 11. hxg6 {[%clk
0:04:09.9]} 11... hxg6 {[%clk 0:04:22.2]} 12. Nf3 {[%clk 0:04:07.7]} 12... Bg7
{[%clk 0:04:15.6]} 13. Bg5 {[%clk 0:04:04.1]} 13... Nf6 {[%clk 0:04:07.7]} 14.
Be2 {[%clk 0:04:00.4]} 14... Na6 {[%clk 0:03:50.5]} 15. Rh4 {[%clk 0:03:56.3]}
15... Bf5 {[%clk 0:03:08.8]} 16. Kf1 {[%clk 0:03:45.2]} 16... Rad8 {[%clk
0:03:06.8]} 17. Rhd4 {[%clk 0:03:29.8]} 17... Rxd4 {[%clk 0:03:00.9]} 18. Nxd4
{[%clk 0:03:28.8]} 18... Bc8 {[%clk 0:02:47]} 19. Nb3 {[%clk 0:03:25.1]} 19...
e5 {[%clk 0:02:30.8]} 20. Be3 {[%clk 0:03:11.8]} 20... b6 {[%clk 0:02:21]} 21.
c5 {[%clk 0:03:10.8]} 21... Nd7 {[%clk 0:02:03.7]} 22. Rxd7 {[%clk 0:02:53]}
22... Bxd7 {[%clk 0:02:02.3]} 23. Bxa6 {[%clk 0:02:51.8]} 23... Rb8 {[%clk
0:01:56.9]} 24. Be2 {[%clk 0:02:38.4]} 24... f5 {[%clk 0:01:50.1]} 25. Bc4+
{[%clk 0:02:34.7]} 25... Kh7 {[%clk 0:01:41.6]} 26. a4 {[%clk 0:02:22.5]} 26...
Bf6 {[%clk 0:01:37.1]} 27. g3 {[%clk 0:02:18.3]} 27... Kg7 {[%clk 0:01:36.1]}
28. Ke2 {[%clk 0:02:10.5]} 28... g5 {[%clk 0:01:23]} 29. f3 {[%clk 0:02:04.2]}
29... Be8 {[%clk 0:01:10.5]} 30. cxb6 {[%clk 0:01:52]} 30... axb6 {[%clk
0:01:08.2]} 31. g4 {[%clk 0:01:42.2]} 31... Bd7 {[%clk 0:00:59.4]} 32. gxf5
{[%clk 0:01:36.5]} 32... Bxf5 {[%clk 0:00:58]} 33. Bd3 {[%clk 0:01:36]} 33...
Be6 {[%clk 0:00:55]} 34. Nd2 {[%clk 0:01:26.7]} 34... g4 {[%clk 0:00:43.7]} 35.
Be4 {[%clk 0:01:23.7]} 35... c5 {[%clk 0:00:35]} 36. fxg4 {[%clk 0:01:18.9]}
36... Bxg4+ {[%clk 0:00:33.9]} 37. Kd3 {[%clk 0:01:18.4]} 37... Be6 {[%clk
0:00:32.5]} 38. Nb5 {[%clk 0:01:06.7]} 38... Kf7 {[%clk 0:00:28.3]} 39. Nc7
{[%clk 0:00:56.3]} 39... Bd7 {[%clk 0:00:26.4]} 40. b3 {[%clk 0:00:47.4]} 40...
Be7 {[%clk 0:00:24.3]} 41. Nd5 {[%clk 0:00:40.7]} 41... Bh4 {[%clk 0:00:22.6]}
42. Nc4 {[%clk 0:00:35.8]} 42... Bf6 {[%clk 0:00:19.8]} 43. Ncxb6 {[%clk
0:00:28.7]} 43... Be6 {[%clk 0:00:18.6]} 44. a5 {[%clk 0:00:22.1]} 44... Bxd5
{[%clk 0:00:16.8]} 45. Bxd5+ {[%clk 0:00:20.9]} 45... Ke7 {[%clk 0:00:13.5]} 46.
Kc4 {[%clk 0:00:17.3]} 46... Kd6 {[%clk 0:00:11.6]} 47. Bxc5+ {[%clk 0:00:15.9]}
47... Kc7 {[%clk 0:00:10.2]} 48. Bf2 {[%clk 0:00:12.5]} 48... Be7 {[%clk
0:00:08.7]} 49. Bg3 {[%clk 0:00:10.2]} 49... Bd6 {[%clk 0:00:06.9]} 50. Be4
{[%clk 0:00:07.5]} 50... Rg8 {[%clk 0:00:05.4]} 51. Nd5+ {[%clk 0:00:05.4]}
51... Kb8 {[%clk 0:00:03.4]} 52. Bf2 {[%clk 0:00:04]} 52... Rc8+ {[%clk
0:00:01.7]} 53. Kb5 {[%clk 0:00:01.8]} 53... Rc1 {[%clk 0:00:00.8]} 0-1

[Event "Live Chess"]
[Site "Chess.com"]
[Date "2024.06.02"]
[Round "-"]
[White "Zhevzh1k7"]
[Black "Isambard_Thomas"]
[Result "0-1"]
[WhiteElo "1107"]
[BlackElo "2169"]
[TimeControl "300"]
[EndTime "3:07:02 PDT"]
[Termination "Isambard_Thomas won by resignation"]

1. e4 {[%clk 0:04:55.1]} 1... Nc6 {[%clk 0:04:58.1]} 2. Nf3 {[%clk 0:04:51.8]}
2... d5 {[%clk 0:04:57.6]} 3. exd5 {[%clk 0:04:45.6]} 3... Qxd5 {[%clk
0:04:57.5]} 4. Nc3 {[%clk 0:04:43]} 4... Qh5 {[%clk 0:04:56.3]} 5. Be2 {[%clk
0:04:39.5]} 5... Bg4 {[%clk 0:04:55.4]} 6. h3 {[%clk 0:04:34.3]} 6... Nf6 {[%clk
0:04:53.6]} 7. d3 {[%clk 0:04:21.7]} 7... O-O-O {[%clk 0:04:50.6]} 8. Be3 {[%clk
0:04:20.2]} 8... e6 {[%clk 0:04:43.2]} 9. Kd2 {[%clk 0:04:14.5]} 9... Bb4 {[%clk
0:04:41.8]} 10. hxg4 {[%clk 0:04:12.4]} 10... Qxg4 {[%clk 0:04:39]} 11. Rh4
{[%clk 0:04:09]} 11... Qf5 {[%clk 0:03:56.7]} 12. Rf4 {[%clk 0:03:52.4]} 12...
Qa5 {[%clk 0:03:52.2]} 13. a3 {[%clk 0:03:41.7]} 13... Bxc3+ {[%clk 0:03:50.8]}
14. bxc3 {[%clk 0:03:41.6]} 14... Nd5 {[%clk 0:03:44.8]} 15. Rc4 {[%clk
0:03:27.7]} 15... Nxe3 {[%clk 0:03:33.9]} 16. fxe3 {[%clk 0:03:23.8]} 16... Qd5
{[%clk 0:03:30.6]} 17. Rh4 {[%clk 0:03:04.3]} 17... h5 {[%clk 0:03:23.4]} 18. e4
{[%clk 0:02:51.7]} 18... Qc5 {[%clk 0:03:13.9]} 19. d4 {[%clk 0:02:44.9]} 19...
g5 {[%clk 0:03:05.2]} 20. Ke1 {[%clk 0:02:30.7]} 20... Qxc3+ {[%clk 0:03:01.2]}
21. Nd2 {[%clk 0:02:25.3]} 21... gxh4 {[%clk 0:02:55.5]} 0-1

[Event "Live Chess"]
[Site "Chess.com"]
[Date "2024.06.02"]
[Round "-"]
[White "ShanthamGrarks"]
[Black "Frankie_Badacsonyi"]
[Result "0-1"]
[WhiteElo "1929"]
[BlackElo "2400"]
[TimeControl "300"]
[EndTime "3:07:14 PDT"]
[Termination "Frankie_Badacsonyi won by resignation"]

1. d4 {[%clk 0:04:56]} 1... d5 {[%clk 0:04:58.1]} 2. Nc3 {[%clk 0:04:55.5]} 2...
Nf6 {[%clk 0:04:56.8]} 3. f3 {[%clk 0:04:53.6]} 3... c5 {[%clk 0:04:54.3]} 4.
dxc5 {[%clk 0:04:48.9]} 4... e6 {[%clk 0:04:49.9]} 5. Bg5 {[%clk 0:04:46.4]}
5... Bxc5 {[%clk 0:04:46.9]} 6. e4 {[%clk 0:04:44.2]} 6... d4 {[%clk 0:04:35.3]}
7. Nb5 {[%clk 0:04:36.2]} 7... Nc6 {[%clk 0:04:25.4]} 8. Bd3 {[%clk 0:04:22.5]}
8... a6 {[%clk 0:04:21]} 9. Na3 {[%clk 0:04:20.8]} 9... Be7 {[%clk 0:04:08.3]}
10. Nc4 {[%clk 0:04:18.4]} 10... O-O {[%clk 0:04:02.8]} 11. Ne2 {[%clk 0:04:16]}
11... b5 {[%clk 0:03:59.9]} 12. Nd2 {[%clk 0:04:07.8]} 12... h6 {[%clk
0:03:56.5]} 13. Bh4 {[%clk 0:04:02.1]} 13... Bb7 {[%clk 0:03:53.6]} 14. f4
{[%clk 0:03:48.7]} 14... Rc8 {[%clk 0:03:21.6]} 15. Nf3 {[%clk 0:03:42.4]} 15...
Nb4 {[%clk 0:03:09]} 16. Nexd4 {[%clk 0:03:23.1]} 16... Nxe4 {[%clk 0:03:03.1]}
17. Bxe7 {[%clk 0:03:19.5]} 17... Qxe7 {[%clk 0:03:03]} 18. c3 {[%clk
0:03:01.4]} 18... Nxd3+ {[%clk 0:03:00.1]} 19. Qxd3 {[%clk 0:03:00.3]} 19... Nc5
{[%clk 0:02:58.9]} 20. Qe2 {[%clk 0:02:53.5]} 20... Qf6 {[%clk 0:02:56]} 21. Ne5
{[%clk 0:02:48.2]} 21... Qxf4 {[%clk 0:02:47.1]} 22. Rf1 {[%clk 0:02:47.1]}
22... Qe4 {[%clk 0:02:44.3]} 23. Qxe4 {[%clk 0:02:40.6]} 23... Bxe4 {[%clk
0:02:43.2]} 24. g4 {[%clk 0:02:35]} 24... f6 {[%clk 0:02:39]} 25. Nef3 {[%clk
0:02:25.4]} 25... e5 {[%clk 0:02:38.1]} 26. Nf5 {[%clk 0:02:20.2]} 26... Bxf5
{[%clk 0:02:36.1]} 27. gxf5 {[%clk 0:02:18.4]} 27... Nd3+ {[%clk 0:02:33.4]} 28.
Ke2 {[%clk 0:02:15.9]} 28... Nxb2 {[%clk 0:02:33.3]} 29. Nh4 {[%clk 0:02:06.4]}
29... Na4 {[%clk 0:02:30.1]} 30. Ng6 {[%clk 0:02:00.6]} 30... Rfd8 {[%clk
0:02:28.5]} 31. Ne7+ {[%clk 0:01:54.5]} 31... Kf7 {[%clk 0:02:27.7]} 32. Nxc8
{[%clk 0:01:53.9]} 32... Rxc8 {[%clk 0:02:27.6]} 33. Kf2 {[%clk 0:01:42.2]}
33... Nxc3 {[%clk 0:02:22.9]} 34. a3 {[%clk 0:01:36.2]} 34... Rc4 {[%clk
0:02:11.2]} 35. Rac1 {[%clk 0:01:30.9]} 35... a5 {[%clk 0:02:08.2]} 36. Kg2
{[%clk 0:01:23.5]} 36... b4 {[%clk 0:02:06.8]} 37. axb4 {[%clk 0:01:21.4]} 37...
axb4 {[%clk 0:02:06.7]} 38. Rf3 {[%clk 0:01:18.5]} 38... Rd4 {[%clk 0:01:57.8]}
39. Ra1 {[%clk 0:01:10.4]} 39... Rd7 {[%clk 0:01:51.4]} 40. h4 {[%clk
0:01:03.9]} 40... Rb7 {[%clk 0:01:49.4]} 41. h5 {[%clk 0:00:57.2]} 41... Nd5
{[%clk 0:01:45.4]} 42. Rb3 {[%clk 0:00:53.4]} 42... Rc7 {[%clk 0:01:40.9]} 43.
Rd1 {[%clk 0:00:48.6]} 43... Rc5 {[%clk 0:01:38.8]} 44. Kf3 {[%clk 0:00:45.5]}
44... Ke7 {[%clk 0:01:30.4]} 45. Rg1 {[%clk 0:00:37.2]} 45... Kf8 {[%clk
0:01:26.9]} 46. Ra1 {[%clk 0:00:33.6]} 46... Rc7 {[%clk 0:01:17.9]} 47. Ra5
{[%clk 0:00:30.6]} 47... Ne7 {[%clk 0:01:09]} 48. Rxb4 {[%clk 0:00:27]} 48...
Nxf5 {[%clk 0:01:07]} 49. Rb8+ {[%clk 0:00:25.4]} 49... Kf7 {[%clk 0:01:05.3]}
50. Raa8 {[%clk 0:00:24.2]} 50... Ne7 {[%clk 0:01:02.3]} 51. Rf8+ {[%clk
0:00:20.9]} 51... Ke6 {[%clk 0:01:01.3]} 52. Ra6+ {[%clk 0:00:19.8]} 52... Kf5
{[%clk 0:01:00.3]} 53. Rf7 {[%clk 0:00:17.5]} 53... Nd5 {[%clk 0:00:46.7]} 54.
Rxg7 {[%clk 0:00:15]} 54... Rxg7 {[%clk 0:00:45.5]} 55. Rxf6+ {[%clk 0:00:12.8]}
55... Nxf6 {[%clk 0:00:44]} 0-1

[Event "Live Chess"]
[Site "Chess.com"]
[Date "2024.06.02"]
[Round "-"]
[White "CarmelJane"]
[Black "oscalik"]
[Result "1-0"]
[WhiteElo "2064"]
[BlackElo "2232"]
[TimeControl "300"]
[EndTime "3:07:36 PDT"]
[Termination "CarmelJane won by resignation"]

1. Nf3 {[%clk 0:04:56.7]} 1... Nf6 {[%clk 0:04:58.4]} 2. b3 {[%clk 0:04:55.8]}
2... d5 {[%clk 0:04:55.7]} 3. Bb2 {[%clk 0:04:55.1]} 3... e6 {[%clk 0:04:55.2]}
4. e3 {[%clk 0:04:53.6]} 4... Be7 {[%clk 0:04:54.5]} 5. g3 {[%clk 0:04:46.6]}
5... O-O {[%clk 0:04:53.4]} 6. Bg2 {[%clk 0:04:46.2]} 6... b6 {[%clk 0:04:50]}
7. O-O {[%clk 0:04:45.6]} 7... Bb7 {[%clk 0:04:49.6]} 8. d4 {[%clk 0:04:44.2]}
8... c5 {[%clk 0:04:48.5]} 9. Nbd2 {[%clk 0:04:42]} 9... Nc6 {[%clk 0:04:47.6]}
10. Ne5 {[%clk 0:04:40.1]} 10... Nxe5 {[%clk 0:04:40.8]} 11. dxe5 {[%clk
0:04:39.1]} 11... Nd7 {[%clk 0:04:40]} 12. c4 {[%clk 0:04:37.4]} 12... f6 {[%clk
0:04:30.8]} 13. cxd5 {[%clk 0:04:35.9]} 13... Nxe5 {[%clk 0:04:30.1]} 14. Nc4
{[%clk 0:04:13.5]} 14... Nxc4 {[%clk 0:04:01.5]} 15. bxc4 {[%clk 0:04:11.3]}
15... e5 {[%clk 0:03:59.8]} 16. Bh3 {[%clk 0:04:06.1]} 16... Bc8 {[%clk
0:03:48.9]} 17. Bxc8 {[%clk 0:04:03.4]} 17... Rxc8 {[%clk 0:03:44.8]} 18. Qg4
{[%clk 0:03:56.5]} 18... Bd6 {[%clk 0:03:39.9]} 19. a4 {[%clk 0:03:30.8]} 19...
f5 {[%clk 0:03:38.2]} 20. Qh5 {[%clk 0:03:24.5]} 20... g6 {[%clk 0:03:35.8]} 21.
Qh6 {[%clk 0:03:12.9]} 21... Rf7 {[%clk 0:03:30.7]} 22. f4 {[%clk 0:03:06.5]}
22... Qe8 {[%clk 0:03:15.9]} 23. a5 {[%clk 0:02:55.6]} 23... exf4 {[%clk
0:03:08]} 24. exf4 {[%clk 0:02:45.3]} 24... Qe3+ {[%clk 0:02:57.2]} 25. Kh1
{[%clk 0:02:42.9]} 25... Qe4+ {[%clk 0:02:48.4]} 26. Kg1 {[%clk 0:02:40.5]}
26... Qe3+ {[%clk 0:02:47.4]} 27. Kh1 {[%clk 0:02:39.5]} 27... Re8 {[%clk
0:02:47.1]} 28. axb6 {[%clk 0:02:17.3]} 28... axb6 {[%clk 0:02:39.7]} 29. Be5
{[%clk 0:01:36]} 29... Qe4+ {[%clk 0:02:32.5]} 30. Kg1 {[%clk 0:01:32.7]} 30...
Bxe5 {[%clk 0:02:31]} 31. fxe5 {[%clk 0:01:30.3]} 31... Qxe5 {[%clk 0:02:26.6]}
32. Qd2 {[%clk 0:01:09.9]} 32... Rfe7 {[%clk 0:01:44]} 33. d6 {[%clk 0:01:02.6]}
33... Rd7 {[%clk 0:01:39.1]} 34. Rae1 {[%clk 0:00:48.1]} 34... Qd4+ {[%clk
0:01:11]} 35. Qxd4 {[%clk 0:00:45.2]} 35... cxd4 {[%clk 0:01:10.9]} 36. Rxe8+
{[%clk 0:00:44.1]} 36... Kf7 {[%clk 0:01:10.8]} 37. Re7+ {[%clk 0:00:37.6]}
37... Rxe7 {[%clk 0:01:09.7]} 38. dxe7 {[%clk 0:00:37.5]} 38... Kxe7 {[%clk
0:01:08.7]} 39. Rd1 {[%clk 0:00:37.2]} 39... Ke6 {[%clk 0:01:07]} 40. Rxd4
{[%clk 0:00:36.7]} 40... g5 {[%clk 0:01:06]} 41. Rd5 {[%clk 0:00:33.3]} 41... h6
{[%clk 0:01:03.8]} 42. Kf2 {[%clk 0:00:32.1]} 42... h5 {[%clk 0:01:02.3]} 43.
Kf3 {[%clk 0:00:30.9]} 43... h4 {[%clk 0:00:57.3]} 44. gxh4 {[%clk 0:00:29.9]}
44... gxh4 {[%clk 0:00:57.2]} 45. Kf4 {[%clk 0:00:29]} 45... b5 {[%clk
0:00:57.1]} 46. Rxb5 {[%clk 0:00:27.9]} 46... Kd6 {[%clk 0:00:56.2]} 47. Rxf5
{[%clk 0:00:27.8]} 47... h3 {[%clk 0:00:55.5]} 48. Rh5 {[%clk 0:00:27]} 48...
Kc6 {[%clk 0:00:54.7]} 49. Rxh3 {[%clk 0:00:26.9]} 49... Kd6 {[%clk 0:00:54.4]}
50. Rh5 {[%clk 0:00:26]} 50... Kc6 {[%clk 0:00:54.3]} 51. Rg5 {[%clk 0:00:24.9]}
51... Kc7 {[%clk 0:00:54.2]} 52. h4 {[%clk 0:00:24.2]} 52... Kd7 {[%clk
0:00:54.1]} 53. h5 {[%clk 0:00:24.1]} 53... Ke6 {[%clk 0:00:53.3]} 54. h6 {[%clk
0:00:24]} 54... Kf6 {[%clk 0:00:53]} 55. h7 {[%clk 0:00:23.1]} 55... Kf7 {[%clk
0:00:52.9]} 56. h8=Q {[%clk 0:00:21]} 56... Ke6 {[%clk 0:00:52.8]} 57. Qh6+
{[%clk 0:00:19.9]} 1-0

[Event "Live Chess"]
[Site "Chess.com"]
[Date "2024.06.02"]
[Round "-"]
[White "WeakOldFinished"]
[Black "Ocelot32"]
[Result "1-0"]
[WhiteElo "2139"]
[BlackElo "1352"]
[TimeControl "300"]
[EndTime "3:07:39 PDT"]
[Termination "WeakOldFinished won by resignation"]

1. d4 {[%clk 0:04:56.7]} 1... Nf6 {[%clk 0:04:57.9]} 2. c4 {[%clk 0:04:55.4]}
2... e6 {[%clk 0:04:56.8]} 3. Nc3 {[%clk 0:04:54.2]} 3... d5 {[%clk 0:04:56.1]}
4. cxd5 {[%clk 0:04:52.5]} 4... exd5 {[%clk 0:04:54.8]} 5. Bg5 {[%clk
0:04:51.2]} 5... c6 {[%clk 0:04:53.2]} 6. e3 {[%clk 0:04:49.8]} 6... Be7 {[%clk
0:04:51.3]} 7. Qc2 {[%clk 0:04:48.3]} 7... O-O {[%clk 0:04:47.7]} 8. Bd3 {[%clk
0:04:47.2]} 8... h6 {[%clk 0:04:45.9]} 9. Bf4 {[%clk 0:04:44.9]} 9... Be6 {[%clk
0:04:44.6]} 10. h3 {[%clk 0:04:43.8]} 10... Nbd7 {[%clk 0:04:43.4]} 11. Nf3
{[%clk 0:04:42.7]} 11... Re8 {[%clk 0:04:42.6]} 12. g4 {[%clk 0:04:40.5]} 12...
c5 {[%clk 0:04:40.2]} 13. g5 {[%clk 0:04:37.3]} 13... c4 {[%clk 0:04:29.3]} 14.
gxf6 {[%clk 0:04:28.4]} 14... cxd3 {[%clk 0:04:28.1]} 15. fxe7 {[%clk
0:04:27.4]} 15... dxc2 {[%clk 0:04:20.5]} 16. exd8=Q {[%clk 0:04:26.3]} 16...
Raxd8 {[%clk 0:04:19.4]} 17. Rc1 {[%clk 0:04:23]} 17... Bf5 {[%clk 0:04:17.8]}
18. Kd2 {[%clk 0:04:18.6]} 18... Nf6 {[%clk 0:04:13.8]} 19. Ne1 {[%clk
0:04:12.4]} 19... Ne4+ {[%clk 0:04:12.2]} 20. Nxe4 {[%clk 0:04:11.4]} 20... Bxe4
{[%clk 0:04:11.4]} 21. f3 {[%clk 0:04:10.5]} 21... Bg6 {[%clk 0:04:07.5]} 22.
Nxc2 {[%clk 0:04:09.4]} 22... Bh5 {[%clk 0:03:56.1]} 23. Rhg1 {[%clk 0:04:07.4]}
23... Kf8 {[%clk 0:03:52.3]} 24. Rgf1 {[%clk 0:03:56.8]} 24... Rd7 {[%clk
0:03:43.3]} 25. Nb4 {[%clk 0:03:54.9]} 25... Rde7 {[%clk 0:03:39.5]} 26. Nxd5
{[%clk 0:03:52.8]} 26... Re6 {[%clk 0:03:37.6]} 27. Nc7 {[%clk 0:03:50.7]} 1-0

[Event "Live Chess"]
[Site "Chess.com"]
[Date "2024.06.02"]
[Round "-"]
[White "dmitro74"]
[Black "Purple1szed"]
[Result "0-1"]
[WhiteElo "1735"]
[BlackElo "2073"]
[TimeControl "300"]
[EndTime "3:07:50 PDT"]
[Termination "Purple1szed won by resignation"]

1. d4 {[%clk 0:04:57.6]} 1... d5 {[%clk 0:04:58.3]} 2. c4 {[%clk 0:04:56.5]}
2... c6 {[%clk 0:04:58]} 3. Nc3 {[%clk 0:04:55.7]} 3... Nf6 {[%clk 0:04:57.6]}
4. Nf3 {[%clk 0:04:54.6]} 4... dxc4 {[%clk 0:04:57.4]} 5. a4 {[%clk 0:04:52.2]}
5... Bf5 {[%clk 0:04:57.1]} 6. e3 {[%clk 0:04:49.2]} 6... e6 {[%clk 0:04:53.5]}
7. Bxc4 {[%clk 0:04:46.9]} 7... Bb4 {[%clk 0:04:53.3]} 8. O-O {[%clk 0:04:44.9]}
8... O-O {[%clk 0:04:52.3]} 9. Bd2 {[%clk 0:04:38.2]} 9... a5 {[%clk 0:04:50.7]}
10. Re1 {[%clk 0:04:31.9]} 10... c5 {[%clk 0:04:49.3]} 11. dxc5 {[%clk
0:04:22.4]} 11... Bxc5 {[%clk 0:04:49.2]} 12. e4 {[%clk 0:04:18]} 12... Bg6
{[%clk 0:04:47]} 13. Bg5 {[%clk 0:03:55.1]} 13... Nc6 {[%clk 0:04:35.9]} 14. Qe2
{[%clk 0:03:39.8]} 14... Qb6 {[%clk 0:04:28.8]} 15. Be3 {[%clk 0:03:17.4]} 15...
Bxe3 {[%clk 0:04:19.1]} 16. Qxe3 {[%clk 0:03:15.6]} 16... Qxe3 {[%clk 0:04:18]}
17. Rxe3 {[%clk 0:03:14.4]} 17... Rfd8 {[%clk 0:04:15.4]} 18. Kf1 {[%clk
0:03:06.6]} 18... Nb4 {[%clk 0:04:06.2]} 19. Bb3 {[%clk 0:02:55.9]} 19... Rd7
{[%clk 0:03:59.7]} 20. Ke2 {[%clk 0:02:49.9]} 20... Rad8 {[%clk 0:03:56.3]} 21.
Rd1 {[%clk 0:02:39.9]} 21... Rxd1 {[%clk 0:03:48.8]} 22. Bxd1 {[%clk 0:02:38.2]}
22... Ng4 {[%clk 0:03:48.3]} 23. h3 {[%clk 0:02:09.1]} 23... Nxe3 {[%clk
0:03:46.2]} 24. Kxe3 {[%clk 0:02:08.5]} 24... f5 {[%clk 0:03:41.2]} 25. Ne5
{[%clk 0:02:04.1]} 25... fxe4 {[%clk 0:03:34.4]} 26. Nxg6 {[%clk 0:01:55.9]}
26... hxg6 {[%clk 0:03:34.3]} 27. Be2 {[%clk 0:01:49.1]} 27... Nd5+ {[%clk
0:03:33]} 28. Kxe4 {[%clk 0:01:41.6]} 28... Nxc3+ {[%clk 0:03:31.5]} 29. bxc3
{[%clk 0:01:40.2]} 29... Rd2 {[%clk 0:03:31.4]} 30. Ke3 {[%clk 0:01:37.4]} 30...
Ra2 {[%clk 0:03:27.2]} 31. Bc4 {[%clk 0:01:33.1]} 31... Rxa4 {[%clk 0:03:23.9]}
32. Bxe6+ {[%clk 0:01:32]} 32... Kf8 {[%clk 0:03:22.8]} 33. c4 {[%clk
0:01:30.8]} 33... Ra1 {[%clk 0:03:20.2]} 34. f4 {[%clk 0:01:23.6]} 34... a4
{[%clk 0:03:18.9]} 35. Bd5 {[%clk 0:01:14.1]} 35... a3 {[%clk 0:03:16.2]} 36. c5
{[%clk 0:01:11.2]} 36... a2 {[%clk 0:03:13.4]} 37. Bxa2 {[%clk 0:01:02.6]} 37...
Rxa2 {[%clk 0:03:13.3]} 38. g4 {[%clk 0:01:01.5]} 38... Ra3+ {[%clk 0:03:12]}
39. Kd4 {[%clk 0:00:59.5]} 39... Rxh3 {[%clk 0:03:11.9]} 40. Kd5 {[%clk
0:00:58.6]} 40... Rg3 {[%clk 0:03:11.3]} 41. f5 {[%clk 0:00:56.6]} 41... Rxg4
{[%clk 0:03:08.9]} 42. fxg6 {[%clk 0:00:55.2]} 42... Rxg6 {[%clk 0:03:08.8]} 0-1

[Event "Live Chess"]
[Site "Chess.com"]
[Date "2024.06.02"]
[Round "-"]
[White "Brooms1989"]
[Black "TigerTank70"]
[Result "0-1"]
[WhiteElo "1209"]
[BlackElo "2221"]
[TimeControl "300"]
[EndTime "3:08:18 PDT"]
[Termination "TigerTank70 won by resignation"]

1. e4 {[%clk 0:04:57]} 1... e5 {[%clk 0:04:57.8]} 2. Nc3 {[%clk 0:04:55.6]} 2...
Nc6 {[%clk 0:04:56.7]} 3. Bc4 {[%clk 0:04:52.1]} 3... d6 {[%clk 0:04:54.5]} 4.
d3 {[%clk 0:04:45.8]} 4... Be7 {[%clk 0:04:53.3]} 5. f4 {[%clk 0:04:43.9]} 5...
Bh4+ {[%clk 0:04:49.1]} 6. g3 {[%clk 0:04:42.6]} 6... Bf6 {[%clk 0:04:47.3]} 7.
Nf3 {[%clk 0:04:40.5]} 7... exf4 {[%clk 0:04:45.5]} 8. Bxf4 {[%clk 0:04:38.7]}
8... Nge7 {[%clk 0:04:44.8]} 9. O-O {[%clk 0:04:36.8]} 9... Bh3 {[%clk 0:04:44]}
10. Rf2 {[%clk 0:04:29.2]} 10... Ng6 {[%clk 0:04:39.5]} 11. Be3 {[%clk 0:03:55]}
11... Nce5 {[%clk 0:04:19.3]} 12. Nxe5 {[%clk 0:03:46.5]} 12... Nxe5 {[%clk
0:04:18.1]} 13. Rd2 {[%clk 0:02:48.9]} 13... O-O {[%clk 0:04:04.5]} 14. Nd5
{[%clk 0:02:30.5]} 14... Bg5 {[%clk 0:04:00.3]} 15. Bxg5 {[%clk 0:02:26.5]}
15... Qxg5 {[%clk 0:03:57.4]} 16. Nf4 {[%clk 0:02:14.2]} 16... Bg4 {[%clk
0:03:53.2]} 17. Qf1 {[%clk 0:01:50.4]} 17... Nf3+ {[%clk 0:03:50.4]} 0-1

[Event "Live Chess"]
[Site "Chess.com"]
[Date "2024.06.02"]
[Round "-"]
[White "Bodhanas"]
[Black "RichardABates"]
[Result "1-0"]
[WhiteElo "2266"]
[BlackElo "2335"]
[TimeControl "300"]
[EndTime "3:08:45 PDT"]
[Termination "Bodhanas won by checkmate"]

1. e4 {[%clk 0:04:56.5]} 1... c5 {[%clk 0:04:58.2]} 2. Nc3 {[%clk 0:04:53.3]}
2... Nc6 {[%clk 0:04:54.7]} 3. f4 {[%clk 0:04:51.4]} 3... g6 {[%clk 0:04:52.7]}
4. Nf3 {[%clk 0:04:50.4]} 4... Bg7 {[%clk 0:04:50.7]} 5. a4 {[%clk 0:04:49.3]}
5... e6 {[%clk 0:04:47.7]} 6. e5 {[%clk 0:04:47.2]} 6... d6 {[%clk 0:04:41.3]}
7. Bb5 {[%clk 0:04:44.5]} 7... dxe5 {[%clk 0:04:24.7]} 8. fxe5 {[%clk
0:04:43.1]} 8... Bd7 {[%clk 0:04:13.6]} 9. Ne4 {[%clk 0:04:41.4]} 9... Nxe5
{[%clk 0:04:09.6]} 10. Nd6+ {[%clk 0:04:40.3]} 10... Ke7 {[%clk 0:04:00.5]} 11.
Nxe5 {[%clk 0:04:34.3]} 11... Bxe5 {[%clk 0:03:51.1]} 12. Nc4 {[%clk 0:04:32.6]}
12... Bg7 {[%clk 0:03:39.7]} 13. d3 {[%clk 0:04:29.9]} 13... h6 {[%clk
0:03:12.1]} 14. Be3 {[%clk 0:04:27.4]} 14... b6 {[%clk 0:03:09.3]} 15. Qf3
{[%clk 0:04:23.4]} 15... Nf6 {[%clk 0:03:03.8]} 16. O-O {[%clk 0:04:20]} 16...
Bxb5 {[%clk 0:02:55]} 17. axb5 {[%clk 0:04:18.6]} 17... Qd5 {[%clk 0:02:52.1]}
18. Qe2 {[%clk 0:04:13.2]} 18... Rhd8 {[%clk 0:02:44.2]} 19. Bd2 {[%clk
0:04:04.9]} 19... Kf8 {[%clk 0:02:34.6]} 20. Bc3 {[%clk 0:04:03.7]} 20... Nh5
{[%clk 0:02:16.7]} 21. Bxg7+ {[%clk 0:03:58.1]} 21... Kxg7 {[%clk 0:02:12.8]}
22. Rf2 {[%clk 0:03:54.1]} 22... g5 {[%clk 0:01:55.9]} 23. Qxh5 {[%clk
0:03:49.6]} 23... f5 {[%clk 0:01:49.3]} 24. Qe2 {[%clk 0:03:45.8]} 24... Re8
{[%clk 0:01:39.8]} 25. Re1 {[%clk 0:03:44.1]} 25... Rad8 {[%clk 0:01:35.2]} 26.
Qe5+ {[%clk 0:03:42.5]} 26... Qxe5 {[%clk 0:01:33.7]} 27. Rxe5 {[%clk
0:03:41.1]} 27... Kf6 {[%clk 0:01:30.7]} 28. Rfe2 {[%clk 0:03:35.7]} 28... Rd4
{[%clk 0:01:25.2]} 29. g3 {[%clk 0:03:33.7]} 29... g4 {[%clk 0:01:22.8]} 30. Kg2
{[%clk 0:03:31.5]} 30... h5 {[%clk 0:01:21.3]} 31. Kf2 {[%clk 0:03:25.3]} 31...
h4 {[%clk 0:01:18.1]} 32. Ke1 {[%clk 0:03:17.1]} 32... Re7 {[%clk 0:01:12.2]}
33. Kd2 {[%clk 0:03:15.6]} 33... Rd8 {[%clk 0:01:05.1]} 34. Kc3 {[%clk
0:03:08.4]} 34... Rh8 {[%clk 0:01:00.6]} 35. Re1 {[%clk 0:02:58.9]} 35... hxg3
{[%clk 0:00:58]} 36. hxg3 {[%clk 0:02:57.3]} 36... Rh3 {[%clk 0:00:56.6]} 37.
R5e3 {[%clk 0:02:55.3]} 37... Rh2 {[%clk 0:00:49.7]} 38. Ne5 {[%clk 0:02:50.6]}
38... Rg2 {[%clk 0:00:43.4]} 39. Rf1 {[%clk 0:02:45.5]} 39... Kg5 {[%clk
0:00:40.4]} 40. Nc6 {[%clk 0:02:42.7]} 40... Rh7 {[%clk 0:00:37.3]} 41. Rxe6
{[%clk 0:02:26.3]} 41... Rhh2 {[%clk 0:00:35.8]} 42. Kc4 {[%clk 0:02:19.1]}
42... Rxc2+ {[%clk 0:00:33]} 43. Kd5 {[%clk 0:02:18]} 43... Rhd2 {[%clk
0:00:29.9]} 44. Ne5 {[%clk 0:02:15.5]} 44... Rxb2 {[%clk 0:00:25.2]} 45. Rg6+
{[%clk 0:02:14]} 45... Kh5 {[%clk 0:00:24.1]} 46. Rxf5# {[%clk 0:02:13.1]} 1-0